[Event "Titled Tuesday Blitz November 15 Late 2022"]
[White "Allahverdiyeva, Ayan"]
[Black "Barria Zuniga, Daniel"]
[WhiteFideId "13412590"]
[BlackFideId "3400816"]
[WhiteElo "2021"]
[BlackElo "2414"]
[Result "0-1"]
[Round "01"]
[TimeControl "180+1"]
[Date "2022.11.16"]
[WhiteClock "0:00:07"]
[BlackClock "0:00:21"]

1. e4 {[%clk 0:02:51]}  c5 {[%clk 0:03:00]} 2. Nf3 {[%clk 0:02:50]}  Nc6 {[%clk 0:03:00]} 3. d4 {[%clk 0:02:50]}  cxd4 {[%clk 0:03:01]} 4. Nxd4 {[%clk 0:02:50]}  e6 {[%clk 0:03:01]} 5. Nc3 {[%clk 0:02:49]}  Qc7 {[%clk 0:03:01]} 6. g3 {[%clk 0:02:48]}  a6 {[%clk 0:03:00]} 7. Bg2 {[%clk 0:02:48]}  Nf6 {[%clk 0:02:59]} 8. O-O {[%clk 0:02:48]}  Be7 {[%clk 0:03:00]} 9. Re1 {[%clk 0:02:47]}  O-O {[%clk 0:03:00]} 10. Nxc6 {[%clk 0:02:43]}  bxc6 {[%clk 0:02:58]} 11. e5 {[%clk 0:02:43]}  Nd5 {[%clk 0:02:59]} 12. Bd2 {[%clk 0:02:43]}  a5 {[%clk 0:02:57]} 13. Qg4 {[%clk 0:02:42]}  f5 {[%clk 0:02:56]} 14. exf6 {[%clk 0:02:41]}  Nxf6 {[%clk 0:02:56]} 15. Qa4 {[%clk 0:02:28]}  e5 {[%clk 0:02:46]} 16. a3 {[%clk 0:02:27]}  d5 {[%clk 0:02:45]} 17. f4 {[%clk 0:02:21]}  Bc5+ {[%clk 0:02:43]} 18. Kh1 {[%clk 0:02:19]}  Ng4 {[%clk 0:02:43]} 19. Nd1 {[%clk 0:02:15]}  e4 {[%clk 0:02:29]} 20. Bxe4 {[%clk 0:02:02]}  Qf7 {[%clk 0:02:13]} 21. Bg2 {[%clk 0:01:57]}  Qh5 {[%clk 0:02:11]} 22. h4 {[%clk 0:01:48]}  Nf2+ {[%clk 0:02:01]} 23. Nxf2 {[%clk 0:01:48]}  Bxf2 {[%clk 0:02:02]} 24. Kh2 {[%clk 0:01:48]}  Qg6 {[%clk 0:01:54]} 25. Qb3 {[%clk 0:01:46]}  Bxe1 {[%clk 0:01:48]} 26. Rxe1 {[%clk 0:01:45]}  Bf5 {[%clk 0:01:49]} 27. c4 {[%clk 0:01:40]}  Rab8 {[%clk 0:01:41]} 28. Qa2 {[%clk 0:01:38]}  Be4 {[%clk 0:01:31]} 29. cxd5 {[%clk 0:01:29]}  Bxg2 {[%clk 0:01:25]} 30. Kxg2 {[%clk 0:01:27]}  cxd5 {[%clk 0:01:24]} 31. Qxd5+ {[%clk 0:01:27]}  Kh8 {[%clk 0:01:21]} 32. Bc3 {[%clk 0:00:43]}  Rxf4 {[%clk 0:01:18]} 33. Qxa5 {[%clk 0:00:35]}  Qc6+ {[%clk 0:01:09]} 34. Kh3 {[%clk 0:00:27]}  Qd7+ {[%clk 0:00:58]} 35. Kh2 {[%clk 0:00:26]}  Rf2+ {[%clk 0:00:54]} 36. Kg1 {[%clk 0:00:26]}  Rbf8 {[%clk 0:00:54]} 37. Qe5 {[%clk 0:00:20]}  Qf7 {[%clk 0:00:46]} 38. Bd4 {[%clk 0:00:16]}  Rf1+ {[%clk 0:00:43]} 39. Rxf1 {[%clk 0:00:17]}  Qxf1+ {[%clk 0:00:44]} 40. Kh2 {[%clk 0:00:17]}  Qf7 {[%clk 0:00:40]} 41. h5 {[%clk 0:00:17]}  Re8 {[%clk 0:00:40]} 42. Qf4 {[%clk 0:00:14]}  Qxh5+ {[%clk 0:00:38]} 43. Kg2 {[%clk 0:00:12]}  Qd5+ {[%clk 0:00:33]} 44. Kh3 {[%clk 0:00:12]}  Qh1+ {[%clk 0:00:31]} 45. Kg4 {[%clk 0:00:12]}  Qd1+ {[%clk 0:00:29]} 46. Kh4 {[%clk 0:00:11]}  Kg8 {[%clk 0:00:22]} 47. Bc3 {[%clk 0:00:07]}  Qh1+ {[%clk 0:00:21]} 48. Kg4 {[%clk 0:00:07]}  Re4 {[%clk 0:00:21]} 0-1


[Site "https://www.chess.com"]

[Event "Titled Tuesday Blitz November 15 Late 2022"]
[White "Andronescu, Madalin"]
[Black "He, Samuel"]
[WhiteFideId "1217275"]
[BlackFideId "2087235"]
[WhiteElo "1946"]
[BlackElo "2592"]
[Result "0-1"]
[Round "01"]
[TimeControl "180+1"]
[Date "2022.11.16"]
[WhiteClock "0:00:54"]
[BlackClock "0:01:06"]

1. e4 {[%clk 0:03:00]}  c6 {[%clk 0:02:55]} 2. d4 {[%clk 0:03:00]}  d5 {[%clk 0:02:55]} 3. Nd2 {[%clk 0:02:59]}  dxe4 {[%clk 0:02:53]} 4. Nxe4 {[%clk 0:02:59]}  Nf6 {[%clk 0:02:53]} 5. Nxf6+ {[%clk 0:02:58]}  exf6 {[%clk 0:02:54]} 6. Nf3 {[%clk 0:02:58]}  Bd6 {[%clk 0:02:54]} 7. Bd3 {[%clk 0:02:57]}  O-O {[%clk 0:02:54]} 8. O-O {[%clk 0:02:57]}  Bg4 {[%clk 0:02:54]} 9. h3 {[%clk 0:02:56]}  Bh5 {[%clk 0:02:54]} 10. Be3 {[%clk 0:02:51]}  Nd7 {[%clk 0:02:54]} 11. Be2 {[%clk 0:02:50]}  Re8 {[%clk 0:02:53]} 12. Nh2 {[%clk 0:02:48]}  Bxe2 {[%clk 0:02:50]} 13. Qxe2 {[%clk 0:02:47]}  f5 {[%clk 0:02:50]} 14. Qf3 {[%clk 0:02:40]}  Qf6 {[%clk 0:02:44]} 15. Rad1 {[%clk 0:02:28]}  Re4 {[%clk 0:02:35]} 16. c3 {[%clk 0:02:21]}  Rae8 {[%clk 0:02:34]} 17. Bc1 {[%clk 0:02:21]}  Bc7 {[%clk 0:02:26]} 18. g3 {[%clk 0:02:21]}  g6 {[%clk 0:02:16]} 19. Kg2 {[%clk 0:02:14]}  h5 {[%clk 0:02:14]} 20. h4 {[%clk 0:02:09]}  Qe6 {[%clk 0:02:02]} 21. b3 {[%clk 0:01:59]}  Nf6 {[%clk 0:01:35]} 22. Rg1 {[%clk 0:01:48]}  Re2 {[%clk 0:01:25]} 23. Bd2 {[%clk 0:01:45]}  Qe4 {[%clk 0:01:17]} 24. Nf1 {[%clk 0:01:41]}  Ng4 {[%clk 0:01:11]} 25. Qxe4 {[%clk 0:01:20]}  Rxf2+ {[%clk 0:01:10]} 26. Kh3 {[%clk 0:01:11]}  fxe4 {[%clk 0:01:09]} 27. Bc1 {[%clk 0:01:01]}  e3 {[%clk 0:01:07]} 28. Re1 {[%clk 0:00:58]}  e2 {[%clk 0:01:06]} 29. Rg2 {[%clk 0:00:54]} 0-1


[Site "https://www.chess.com"]

[Event "Titled Tuesday Blitz November 15 Late 2022"]
[White "Arbunic Castro, Giovanna"]
[Black "Besedes, Danilo"]
[WhiteFideId "3400549"]
[BlackFideId "946796"]
[WhiteElo "1925"]
[BlackElo "2352"]
[Result "0-1"]
[Round "01"]
[TimeControl "180+1"]
[Date "2022.11.16"]
[WhiteClock "0:00:03"]
[BlackClock "0:00:53"]

1. e4 {[%clk 0:02:57]}  d6 {[%clk 0:02:58]} 2. d4 {[%clk 0:02:55]}  e5 {[%clk 0:02:58]} 3. dxe5 {[%clk 0:02:52]}  dxe5 {[%clk 0:02:59]} 4. Qxd8+ {[%clk 0:02:51]}  Kxd8 {[%clk 0:03:00]} 5. Bc4 {[%clk 0:02:50]}  f6 {[%clk 0:02:55]} 6. Nc3 {[%clk 0:02:48]}  a6 {[%clk 0:02:54]} 7. a4 {[%clk 0:02:46]}  Bd6 {[%clk 0:02:55]} 8. Be3 {[%clk 0:02:45]}  Ne7 {[%clk 0:02:55]} 9. O-O-O {[%clk 0:02:42]}  Bd7 {[%clk 0:02:54]} 10. Kb1 {[%clk 0:02:41]}  Nbc6 {[%clk 0:02:54]} 11. Nge2 {[%clk 0:02:35]}  Ng6 {[%clk 0:02:44]} 12. g3 {[%clk 0:02:33]}  Bg4 {[%clk 0:02:42]} 13. Rhe1 {[%clk 0:02:25]}  Kc8 {[%clk 0:02:38]} 14. Rd2 {[%clk 0:02:21]}  Rd8 {[%clk 0:02:31]} 15. Ng1 {[%clk 0:02:18]}  Bb4 {[%clk 0:02:27]} 16. Rxd8+ {[%clk 0:02:08]}  Kxd8 {[%clk 0:02:28]} 17. f3 {[%clk 0:02:07]}  Bxc3 {[%clk 0:02:21]} 18. bxc3 {[%clk 0:02:02]}  Bd7 {[%clk 0:02:21]} 19. Rd1 {[%clk 0:02:01]}  Ke8 {[%clk 0:02:21]} 20. Ne2 {[%clk 0:01:51]}  Rb8 {[%clk 0:02:15]} 21. f4 {[%clk 0:01:45]}  b5 {[%clk 0:02:14]} 22. axb5 {[%clk 0:01:41]}  axb5 {[%clk 0:02:15]} 23. Bb3 {[%clk 0:01:40]}  Bg4 {[%clk 0:02:15]} 24. Rd2 {[%clk 0:01:38]}  b4 {[%clk 0:02:13]} 25. c4 {[%clk 0:01:34]}  Rd8 {[%clk 0:02:06]} 26. Ba4 {[%clk 0:01:26]}  Rxd2 {[%clk 0:01:57]} 27. Bxc6+ {[%clk 0:01:13]}  Rd7 {[%clk 0:01:46]} 28. f5 {[%clk 0:00:55]}  Ne7 {[%clk 0:01:34]} 29. Bxd7+ {[%clk 0:00:49]}  Kxd7 {[%clk 0:01:35]} 30. Ng1 {[%clk 0:00:42]}  Bh5 {[%clk 0:01:24]} 31. Bc5 {[%clk 0:00:41]}  Nc6 {[%clk 0:01:24]} 32. Bf8 {[%clk 0:00:35]}  g5 {[%clk 0:01:07]} 33. Kb2 {[%clk 0:00:32]}  Bf7 {[%clk 0:01:03]} 34. Kb3 {[%clk 0:00:32]}  Na5+ {[%clk 0:01:02]} 35. Ka4 {[%clk 0:00:28]}  Nxc4 {[%clk 0:01:03]} 36. Kxb4 {[%clk 0:00:24]}  Nd2 {[%clk 0:01:03]} 37. Bg7 {[%clk 0:00:19]}  Nxe4 {[%clk 0:01:02]} 38. Nf3 {[%clk 0:00:17]}  Ke7 {[%clk 0:01:01]} 39. c4 {[%clk 0:00:12]}  g4 {[%clk 0:00:57]} 40. Ne1 {[%clk 0:00:08]}  Nd6 {[%clk 0:00:57]} 41. c5 {[%clk 0:00:06]}  Nxf5 {[%clk 0:00:57]} 42. Bh8 {[%clk 0:00:06]}  Bd5 {[%clk 0:00:54]} 43. Nd3 {[%clk 0:00:03]}  c6 {[%clk 0:00:53]} 0-1


[Site "https://www.chess.com"]

[Event "Titled Tuesday Blitz November 15 Late 2022"]
[White "Ardila, Oscar Humberto"]
[Black "Suleymanli, Suleyman"]
[WhiteFideId "4404742"]
[BlackFideId "13416375"]
[WhiteElo "1959"]
[BlackElo "2204"]
[Result "0-1"]
[Round "01"]
[TimeControl "180+1"]
[Date "2022.11.16"]
[WhiteClock "0:00:10"]
[BlackClock "0:00:32"]

1. d4 {[%clk 0:02:53]}  d5 {[%clk 0:02:59]} 2. c4 {[%clk 0:02:04]}  c6 {[%clk 0:02:59]} 3. e3 {[%clk 0:02:03]}  Nf6 {[%clk 0:02:52]} 4. Nf3 {[%clk 0:02:03]}  Bf5 {[%clk 0:02:50]} 5. Be2 {[%clk 0:02:04]}  e6 {[%clk 0:02:49]} 6. O-O {[%clk 0:02:03]}  h6 {[%clk 0:02:48]} 7. Nc3 {[%clk 0:02:04]}  Nbd7 {[%clk 0:02:47]} 8. Bd2 {[%clk 0:02:03]}  Bd6 {[%clk 0:02:46]} 9. b3 {[%clk 0:02:02]}  O-O {[%clk 0:02:46]} 10. h3 {[%clk 0:02:02]}  dxc4 {[%clk 0:02:46]} 11. bxc4 {[%clk 0:02:02]}  e5 {[%clk 0:02:45]} 12. Qb3 {[%clk 0:01:58]}  Rb8 {[%clk 0:02:43]} 13. d5 {[%clk 0:01:48]}  Nc5 {[%clk 0:02:38]} 14. Qb2 {[%clk 0:01:46]}  Bd3 {[%clk 0:02:28]} 15. Bxd3 {[%clk 0:01:37]}  Nxd3 {[%clk 0:02:29]} 16. Qc2 {[%clk 0:01:38]}  Nc5 {[%clk 0:02:23]} 17. e4 {[%clk 0:01:32]}  cxd5 {[%clk 0:01:59]} 18. cxd5 {[%clk 0:01:25]}  b5 {[%clk 0:01:58]} 19. a3 {[%clk 0:01:23]}  Qd7 {[%clk 0:01:51]} 20. Be3 {[%clk 0:01:23]}  Rfc8 {[%clk 0:01:37]} 21. Bxc5 {[%clk 0:01:12]}  Rxc5 {[%clk 0:01:38]} 22. Qd3 {[%clk 0:01:11]}  Rbc8 {[%clk 0:01:35]} 23. Ne2 {[%clk 0:01:05]}  Rc4 {[%clk 0:01:34]} 24. Nd2 {[%clk 0:01:01]}  Rc2 {[%clk 0:01:27]} 25. Rfc1 {[%clk 0:00:58]}  Rxc1+ {[%clk 0:01:18]} 26. Rxc1 {[%clk 0:00:58]}  a6 {[%clk 0:01:18]} 27. Kh2 {[%clk 0:00:47]}  Rxc1 {[%clk 0:01:09]} 28. Nxc1 {[%clk 0:00:47]}  Qc7 {[%clk 0:01:09]} 29. Ne2 {[%clk 0:00:47]}  Qc5 {[%clk 0:01:06]} 30. Ng3 {[%clk 0:00:33]}  Qxf2 {[%clk 0:01:02]} 31. Nf5 {[%clk 0:00:30]}  Bc5 {[%clk 0:00:57]} 32. Nf3 {[%clk 0:00:29]}  Nh5 {[%clk 0:00:46]} 33. Qd2 {[%clk 0:00:25]}  Qxd2 {[%clk 0:00:42]} 34. Nxd2 {[%clk 0:00:26]}  Bxa3 {[%clk 0:00:42]} 35. Nf3 {[%clk 0:00:24]}  g6 {[%clk 0:00:40]} 36. Nxh6+ {[%clk 0:00:22]}  Kg7 {[%clk 0:00:40]} 37. Ng4 {[%clk 0:00:22]}  f6 {[%clk 0:00:41]} 38. Ne3 {[%clk 0:00:22]}  Bc5 {[%clk 0:00:40]} 39. Nc2 {[%clk 0:00:22]}  a5 {[%clk 0:00:38]} 40. Nd2 {[%clk 0:00:23]}  a4 {[%clk 0:00:38]} 41. g4 {[%clk 0:00:19]}  Nf4 {[%clk 0:00:38]} 42. Kg3 {[%clk 0:00:20]}  b4 {[%clk 0:00:37]} 43. Nc4 {[%clk 0:00:20]}  b3 {[%clk 0:00:36]} 44. Ne1 {[%clk 0:00:18]}  a3 {[%clk 0:00:35]} 45. Kf3 {[%clk 0:00:11]}  a2 {[%clk 0:00:33]} 46. Nd3 {[%clk 0:00:10]}  Nxd3 {[%clk 0:00:32]} 0-1


[Site "https://www.chess.com"]

[Event "Titled Tuesday Blitz November 15 Late 2022"]
[White "Avila Rodriguez, Joshua Ad"]
[Black "Kopylov, Alexander A."]
[WhiteFideId "5126444"]
[BlackFideId "4164857"]
[WhiteElo "2125"]
[BlackElo "2436"]
[Result "0-1"]
[Round "01"]
[TimeControl "180+1"]
[Date "2022.11.16"]
[WhiteClock "0:00:05"]
[BlackClock "0:00:54"]

1. e4 {[%clk 0:03:00]}  e5 {[%clk 0:02:59]} 2. Nf3 {[%clk 0:03:00]}  Nc6 {[%clk 0:02:59]} 3. Bb5 {[%clk 0:03:01]}  a6 {[%clk 0:02:59]} 4. Ba4 {[%clk 0:03:01]}  d6 {[%clk 0:02:59]} 5. O-O {[%clk 0:02:59]}  Bd7 {[%clk 0:03:00]} 6. c3 {[%clk 0:02:55]}  Nf6 {[%clk 0:03:00]} 7. Re1 {[%clk 0:02:54]}  g6 {[%clk 0:03:00]} 8. h3 {[%clk 0:02:52]}  Bg7 {[%clk 0:03:00]} 9. d4 {[%clk 0:02:52]}  O-O {[%clk 0:03:01]} 10. Nbd2 {[%clk 0:02:44]}  Qe8 {[%clk 0:03:01]} 11. Bc2 {[%clk 0:02:42]}  Nh5 {[%clk 0:03:00]} 12. Nf1 {[%clk 0:02:41]}  f5 {[%clk 0:03:01]} 13. dxe5 {[%clk 0:02:41]}  dxe5 {[%clk 0:03:01]} 14. Be3 {[%clk 0:02:37]}  Kh8 {[%clk 0:02:40]} 15. Bc5 {[%clk 0:02:34]}  Rg8 {[%clk 0:02:32]} 16. Bb3 {[%clk 0:02:23]}  Be6 {[%clk 0:02:32]} 17. Bxe6 {[%clk 0:01:52]}  Qxe6 {[%clk 0:02:31]} 18. Qb3 {[%clk 0:01:52]}  Nd8 {[%clk 0:02:20]} 19. Rad1 {[%clk 0:01:37]}  Qxb3 {[%clk 0:02:07]} 20. axb3 {[%clk 0:01:37]}  Ne6 {[%clk 0:02:07]} 21. Be3 {[%clk 0:01:31]}  f4 {[%clk 0:02:00]} 22. Bc1 {[%clk 0:01:29]}  Rge8 {[%clk 0:01:49]} 23. b4 {[%clk 0:01:17]}  Bf6 {[%clk 0:01:48]} 24. Rd7 {[%clk 0:01:14]}  Rad8 {[%clk 0:01:43]} 25. Red1 {[%clk 0:01:12]}  Rxd7 {[%clk 0:01:39]} 26. Rxd7 {[%clk 0:01:13]}  Rd8 {[%clk 0:01:39]} 27. Rxd8+ {[%clk 0:01:10]}  Nxd8 {[%clk 0:01:40]} 28. g4 {[%clk 0:01:07]}  fxg3 {[%clk 0:01:38]} 29. fxg3 {[%clk 0:01:07]}  Ne6 {[%clk 0:01:30]} 30. Kg2 {[%clk 0:01:07]}  c5 {[%clk 0:01:15]} 31. Ne3 {[%clk 0:00:57]}  cxb4 {[%clk 0:01:15]} 32. Ng4 {[%clk 0:00:57]}  bxc3 {[%clk 0:01:13]} 33. bxc3 {[%clk 0:00:56]}  Nc5 {[%clk 0:01:11]} 34. Nfxe5 {[%clk 0:00:31]}  Nxe4 {[%clk 0:01:09]} 35. Nxf6 {[%clk 0:00:29]}  Nhxf6 {[%clk 0:01:10]} 36. c4 {[%clk 0:00:29]}  Kg8 {[%clk 0:01:02]} 37. Kf3 {[%clk 0:00:25]}  Nc5 {[%clk 0:01:01]} 38. Be3 {[%clk 0:00:23]}  Ncd7 {[%clk 0:01:01]} 39. Nd3 {[%clk 0:00:22]}  Kf7 {[%clk 0:01:00]} 40. g4 {[%clk 0:00:21]}  Ke6 {[%clk 0:00:59]} 41. Ke2 {[%clk 0:00:17]}  Ne4 {[%clk 0:00:55]} 42. Kf3 {[%clk 0:00:17]}  Nd6 {[%clk 0:00:54]} 43. c5 {[%clk 0:00:15]}  Nc4 {[%clk 0:00:54]} 44. Bf2 {[%clk 0:00:12]}  Nce5+ {[%clk 0:00:54]} 45. Ke4 {[%clk 0:00:11]}  Nxd3 {[%clk 0:00:54]} 46. Kxd3 {[%clk 0:00:11]}  Kd5 {[%clk 0:00:55]} 47. h4 {[%clk 0:00:05]}  Nxc5+ {[%clk 0:00:54]} 48. Kc3 {[%clk 0:00:05]}  Ne4+ {[%clk 0:00:54]} 0-1


[Site "https://www.chess.com"]

[Event "Titled Tuesday Blitz November 15 Late 2022"]
[White "Badelka, Olga"]
[Black "Phillips, Rene"]
[WhiteFideId "13509926"]
[BlackFideId "2056275"]
[WhiteElo "2337"]
[BlackElo "1990"]
[Result "1-0"]
[Round "01"]
[TimeControl "180+1"]
[Date "2022.11.16"]
[WhiteClock "0:00:29"]
[BlackClock "0:00:10"]

1. d4 {[%clk 0:02:57]}  Nc6 {[%clk 0:03:00]} 2. e4 {[%clk 0:02:53]}  d5 {[%clk 0:02:59]} 3. e5 {[%clk 0:02:48]}  f6 {[%clk 0:02:59]} 4. exf6 {[%clk 0:02:39]}  Nxf6 {[%clk 0:03:00]} 5. Bf4 {[%clk 0:02:28]}  Bg4 {[%clk 0:02:57]} 6. Be2 {[%clk 0:02:26]}  Bf5 {[%clk 0:02:50]} 7. Nf3 {[%clk 0:02:23]}  e6 {[%clk 0:02:47]} 8. O-O {[%clk 0:02:22]}  Bd6 {[%clk 0:02:47]} 9. Bg3 {[%clk 0:02:12]}  O-O {[%clk 0:02:43]} 10. Nc3 {[%clk 0:02:09]}  Ne4 {[%clk 0:02:41]} 11. Nxe4 {[%clk 0:02:08]}  Bxe4 {[%clk 0:02:41]} 12. c3 {[%clk 0:01:57]}  Bxg3 {[%clk 0:02:39]} 13. hxg3 {[%clk 0:01:53]}  Qf6 {[%clk 0:02:30]} 14. Nd2 {[%clk 0:01:52]}  Bf5 {[%clk 0:02:22]} 15. f4 {[%clk 0:01:51]}  Qg6 {[%clk 0:02:15]} 16. Qe1 {[%clk 0:01:50]}  Rae8 {[%clk 0:02:12]} 17. Bb5 {[%clk 0:01:47]}  Re7 {[%clk 0:01:58]} 18. Bxc6 {[%clk 0:01:46]}  bxc6 {[%clk 0:01:58]} 19. Nf3 {[%clk 0:01:44]}  Be4 {[%clk 0:01:54]} 20. Ne5 {[%clk 0:01:44]}  Qe8 {[%clk 0:01:53]} 21. Rf2 {[%clk 0:01:39]}  c5 {[%clk 0:01:27]} 22. dxc5 {[%clk 0:01:39]}  Qb5 {[%clk 0:01:20]} 23. Qe3 {[%clk 0:01:36]}  a5 {[%clk 0:01:15]} 24. Raf1 {[%clk 0:01:23]}  a4 {[%clk 0:01:12]} 25. a3 {[%clk 0:01:15]}  Ree8 {[%clk 0:01:02]} 26. c6 {[%clk 0:01:11]}  Rf6 {[%clk 0:00:53]} 27. g4 {[%clk 0:01:08]}  Rh6 {[%clk 0:00:48]} 28. g5 {[%clk 0:00:54]}  Rh5 {[%clk 0:00:43]} 29. Qe2 {[%clk 0:00:53]}  Qxe2 {[%clk 0:00:37]} 30. Rxe2 {[%clk 0:00:54]}  g6 {[%clk 0:00:34]} 31. Rd2 {[%clk 0:00:52]}  Rb8 {[%clk 0:00:33]} 32. Rff2 {[%clk 0:00:50]}  Kg7 {[%clk 0:00:28]} 33. Rd4 {[%clk 0:00:50]}  Ra8 {[%clk 0:00:26]} 34. Rb4 {[%clk 0:00:49]}  Rc8 {[%clk 0:00:18]} 35. Rxa4 {[%clk 0:00:48]}  Rh4 {[%clk 0:00:16]} 36. Ra7 {[%clk 0:00:44]}  Kf8 {[%clk 0:00:14]} 37. a4 {[%clk 0:00:44]}  Ke7 {[%clk 0:00:14]} 38. a5 {[%clk 0:00:42]}  Kd6 {[%clk 0:00:14]} 39. b4 {[%clk 0:00:29]}  d4 {[%clk 0:00:12]} 40. cxd4 {[%clk 0:00:29]}  Bxc6 {[%clk 0:00:10]} 41. Ra6 {[%clk 0:00:29]} 1-0


[Site "https://www.chess.com"]

[Event "Titled Tuesday Blitz November 15 Late 2022"]
[White "Bashirli, Nail"]
[Black "Kaplan, Avi Harrison"]
[WhiteFideId "13406809"]
[BlackFideId "30934559"]
[WhiteElo "2318"]
[BlackElo "1983"]
[Result "1-0"]
[Round "01"]
[TimeControl "180+1"]
[Date "2022.11.16"]
[WhiteClock "0:01:12"]
[BlackClock "0:00:09"]

1. e4 {[%clk 0:03:00]}  c5 {[%clk 0:02:57]} 2. Nc3 {[%clk 0:02:59]}  d6 {[%clk 0:02:56]} 3. g3 {[%clk 0:02:57]}  Nc6 {[%clk 0:02:56]} 4. Bg2 {[%clk 0:02:58]}  Nf6 {[%clk 0:02:50]} 5. Nge2 {[%clk 0:02:58]}  e5 {[%clk 0:02:50]} 6. O-O {[%clk 0:02:59]}  Be7 {[%clk 0:02:51]} 7. f4 {[%clk 0:02:59]}  a6 {[%clk 0:02:41]} 8. d3 {[%clk 0:02:59]}  b5 {[%clk 0:02:39]} 9. fxe5 {[%clk 0:02:59]}  dxe5 {[%clk 0:02:36]} 10. Bg5 {[%clk 0:02:59]}  Nd4 {[%clk 0:02:31]} 11. Nxd4 {[%clk 0:02:58]}  cxd4 {[%clk 0:02:28]} 12. Bxf6 {[%clk 0:02:53]}  Bxf6 {[%clk 0:02:12]} 13. Nd5 {[%clk 0:02:52]}  Bg5 {[%clk 0:02:13]} 14. h4 {[%clk 0:02:51]}  Bh6 {[%clk 0:02:11]} 15. Qh5 {[%clk 0:01:46]}  O-O {[%clk 0:01:23]} 16. Rf3 {[%clk 0:01:44]}  f6 {[%clk 0:00:54]} 17. Raf1 {[%clk 0:01:38]}  Ra7 {[%clk 0:00:48]} 18. g4 {[%clk 0:01:26]}  Be6 {[%clk 0:00:41]} 19. g5 {[%clk 0:01:24]}  g6 {[%clk 0:00:22]} 20. Qxh6 {[%clk 0:01:20]}  f5 {[%clk 0:00:23]} 21. Nf6+ {[%clk 0:01:17]}  Kh8 {[%clk 0:00:23]} 22. exf5 {[%clk 0:01:13]}  Bxf5 {[%clk 0:00:21]} 23. Rxf5 {[%clk 0:01:12]}  gxf5 {[%clk 0:00:22]} 24. Rf2 {[%clk 0:01:13]}  f4 {[%clk 0:00:20]} 25. Be4 {[%clk 0:01:12]}  Rff7 {[%clk 0:00:18]} 26. Rg2 {[%clk 0:01:10]}  Rg7 {[%clk 0:00:18]} 27. Nh5 {[%clk 0:01:07]}  Rg8 {[%clk 0:00:09]} 28. g6 {[%clk 0:01:07]}  Rag7 {[%clk 0:00:02]} 29. Nxg7 {[%clk 0:01:04]}  Rxg7 {[%clk 0:00:03]} 30. gxh7 {[%clk 0:01:01]}  Qf8 {[%clk 0:00:03]} 31. Rxg7 {[%clk 0:01:01]}  Qxg7+ {[%clk 0:00:04]} 32. Qxg7+ {[%clk 0:01:02]}  Kxg7 {[%clk 0:00:05]} 33. Kg2 {[%clk 0:01:02]}  a5 {[%clk 0:00:06]} 34. Kf3 {[%clk 0:01:02]}  a4 {[%clk 0:00:07]} 35. Kg4 {[%clk 0:01:03]}  b4 {[%clk 0:00:08]} 36. b3 {[%clk 0:01:03]}  axb3 {[%clk 0:00:07]} 37. axb3 {[%clk 0:01:04]}  Kh8 {[%clk 0:00:08]} 38. Kf5 {[%clk 0:01:05]}  f3 {[%clk 0:00:08]} 39. Bxf3 {[%clk 0:01:05]}  Kxh7 {[%clk 0:00:08]} 40. Be4 {[%clk 0:01:06]}  Kh6 {[%clk 0:00:08]} 41. Kxe5 {[%clk 0:01:07]}  Kh5 {[%clk 0:00:09]} 42. Kxd4 {[%clk 0:01:07]}  Kxh4 {[%clk 0:00:10]} 43. Kc5 {[%clk 0:01:08]}  Kg3 {[%clk 0:00:11]} 44. Kxb4 {[%clk 0:01:09]}  Kf2 {[%clk 0:00:12]} 45. Kc5 {[%clk 0:01:10]}  Ke1 {[%clk 0:00:12]} 46. Kd6 {[%clk 0:01:11]}  Kd2 {[%clk 0:00:13]} 47. b4 {[%clk 0:01:12]}  Kc3 {[%clk 0:00:10]} 48. b5 {[%clk 0:01:13]}  Kb4 {[%clk 0:00:10]} 49. b6 {[%clk 0:01:14]}  Kc3 {[%clk 0:00:07]} 50. b7 {[%clk 0:01:14]}  Kd2 {[%clk 0:00:08]} 51. b8=Q {[%clk 0:01:14]}  Ke3 {[%clk 0:00:09]} 52. Ke5 {[%clk 0:01:12]}  Kd2 {[%clk 0:00:09]} 53. Qb4+ {[%clk 0:01:12]}  Kc1 {[%clk 0:00:09]} 54. Kd4 {[%clk 0:01:12]}  Kd1 {[%clk 0:00:09]} 55. Ke3 {[%clk 0:01:12]}  Kc1 {[%clk 0:00:09]} 56. d4 {[%clk 0:01:11]}  Kd1 {[%clk 0:00:09]} 57. Qb1# {[%clk 0:01:12]} 1-0


[Site "https://www.chess.com"]

[Event "Titled Tuesday Blitz November 15 Late 2022"]
[White "Bazzano, Sebastian"]
[Black "Goroshkov, Maksym"]
[WhiteFideId "104566"]
[BlackFideId "14142716"]
[WhiteElo "2260"]
[BlackElo "2257"]
[Result "0-1"]
[Round "01"]
[TimeControl "180+1"]
[Date "2022.11.16"]
[WhiteClock "0:00:01"]
[BlackClock "0:00:19"]

1. d4 {[%clk 0:02:59]}  Nf6 {[%clk 0:02:59]} 2. Bf4 {[%clk 0:02:58]}  d6 {[%clk 0:02:59]} 3. Nc3 {[%clk 0:02:57]}  g6 {[%clk 0:02:54]} 4. e4 {[%clk 0:02:56]}  Bg7 {[%clk 0:02:53]} 5. Qd2 {[%clk 0:02:52]}  O-O {[%clk 0:02:52]} 6. O-O-O {[%clk 0:02:51]}  c6 {[%clk 0:02:48]} 7. Nf3 {[%clk 0:02:48]}  b5 {[%clk 0:02:48]} 8. Bd3 {[%clk 0:02:45]}  Qa5 {[%clk 0:02:45]} 9. Kb1 {[%clk 0:02:43]}  b4 {[%clk 0:02:22]} 10. Ne2 {[%clk 0:02:40]}  c5 {[%clk 0:02:22]} 11. e5 {[%clk 0:02:18]}  Be6 {[%clk 0:02:16]} 12. Nc1 {[%clk 0:02:06]}  Nd5 {[%clk 0:02:15]} 13. b3 {[%clk 0:01:09]}  Nc3+ {[%clk 0:01:54]} 14. Kb2 {[%clk 0:01:08]}  Nc6 {[%clk 0:01:49]} 15. Rde1 {[%clk 0:00:44]}  Rfd8 {[%clk 0:01:25]} 16. exd6 {[%clk 0:00:18]}  Nxd4 {[%clk 0:01:22]} 17. Be5 {[%clk 0:00:13]}  Nxf3 {[%clk 0:01:14]} 18. gxf3 {[%clk 0:00:12]}  Bxe5 {[%clk 0:01:08]} 19. Rxe5 {[%clk 0:00:10]}  Rxd6 {[%clk 0:01:09]} 20. h4 {[%clk 0:00:03]}  Rad8 {[%clk 0:01:03]} 21. Qh6 {[%clk 0:00:01]}  f5 {[%clk 0:00:19]} 22. h5 {[%clk 0:00:01]}  Bf7 {[%clk 0:00:19]} 0-1


[Site "https://www.chess.com"]